fUSD/lending_fUSD_20260217
["ID","MTS","AMOUNT","RATE_DAILY","PERIOD"]
[405830788,1771347039354,-150.31509327,8.219e-05,2]
[405830790,1771347039365,-500.0,8.219e-05,2]
[405830792,1771347039375,-500.0,8.219e-05,2]
[405830794,1771347039384,-596.0,8.219e-05,2]
[405830796,1771347039394,-150.0,8.219e-05,2]
[405830797,1771347039404,-500.0,8.219e-05,2]
[405830799,1771347039413,-500.0,8.219e-05,2]
[405830801,1771347039423,-500.0,8.219e-05,2]
[405830804,1771347039433,-150.0,8.219e-05,2]
[405830806,1771347039444,-500.0,8.219e-05,2]
[405830808,1771347039454,-150.0,8.219e-05,2]
[405830810,1771347039463,-150.0,8.219e-05,2]
[405830812,1771347039472,-500.0,8.219e-05,2]
[405830814,1771347039482,-500.0,8.219e-05,2]
[405830816,1771347039491,-237.28842339,8.219e-05,2]
[405830818,1771347039501,-214.0121963,8.219e-05,2]
[405830820,1771347039510,-500.0,8.219e-05,2]
[405830822,1771347039519,-500.0,8.219e-05,2]
[405830824,1771347039528,-500.0,8.219e-05,2]
[405830826,1771347039537,-500.0,8.219e-05,2]
[405830828,1771347039547,-500.0,8.219e-05,2]
[405830830,1771347039560,-531.75020647,8.219e-05,2]
[405830832,1771347039570,-500.0,8.219e-05,2]
[405830834,1771347039580,-500.0,8.219e-05,2]
[405830836,1771347039590,-500.0,8.219e-05,2]
[405830838,1771347039599,-150.0,8.219e-05,2]
[405830840,1771347039609,-500.0,8.219e-05,2]
[405830842,1771347039619,-500.0,8.219e-05,2]
[405830844,1771347039628,-150.0,8.219e-05,2]
[405830846,1771347039637,-466.0,8.219e-05,2]
[405830848,1771347039646,-500.0,8.219e-05,2]
[405830850,1771347039655,-500.0,8.219e-05,2]
[405830851,1771347039664,-150.0,8.219e-05,2]
[405830853,1771347039673,-150.0,8.219e-05,2]
[405830854,1771347039683,-434.636986,8.219e-05,2]
[405830856,1771347039692,-288.133995,8.219e-05,2]
[405830858,1771347039701,-500.0,8.219e-05,2]
[405830860,1771347039719,-4606.71,8.219e-05,2]
[405830862,1771347039730,-1000.0,8.219e-05,2]
[405830864,1771347039739,-166.66,8.223e-05,2]
[405830866,1771347039752,-586.96490725,8.26e-05,2]
[405830868,1771347039762,-502.16866536,8.274e-05,2]
[405830870,1771347039771,-500.0,8.274e-05,2]
[405830871,1771347039782,-500.0,8.274e-05,2]
[405830873,1771347039791,-500.0,8.274e-05,2]
[405830875,1771347039800,-150.0,8.274e-05,2]
[405830877,1771347039811,-500.0,8.274e-05,2]
[405830879,1771347039824,-500.0,8.274e-05,2]
[405830881,1771347039833,-500.0,8.274e-05,2]
[405830882,1771347039842,-500.0,8.274e-05,2]
[405830884,1771347039851,-500.0,8.274e-05,2]
[405830886,1771347039861,-596.0,8.274e-05,2]
[405830888,1771347039870,-150.0,8.274e-05,2]
[405830889,1771347039879,-500.0,8.274e-05,2]
[405830891,1771347039888,-500.0,8.274e-05,2]
[405830893,1771347039897,-649.65624143,8.274e-05,2]
[405830895,1771347039907,-205.12968692,8.274e-05,2]
[405830897,1771347039916,-500.0,8.274e-05,2]
[405830898,1771347039925,-150.0,8.274e-05,2]
[405830900,1771347039935,-151.2254874,8.274e-05,2]
[405830902,1771347039944,-500.0,8.274e-05,2]
[405830904,1771347039953,-500.0,8.274e-05,2]
[405830905,1771347039962,-500.0,8.274e-05,2]
[405830907,1771347039971,-500.0,8.274e-05,2]
[405830909,1771347039981,-500.0,8.274e-05,2]
[405830911,1771347039990,-150.07216309,8.274e-05,2]
[405830913,1771347039999,-500.0,8.274e-05,2]
[405830914,1771347040008,-500.0,8.274e-05,2]
[405830916,1771347040018,-466.0,8.274e-05,2]
[405830918,1771347040027,-500.0,8.274e-05,2]
[405830920,1771347040037,-500.0,8.274e-05,2]
[405830922,1771347040047,-500.0,8.329e-05,2]
[405830924,1771347040057,-500.0,8.329e-05,2]
[405830926,1771347040067,-500.0,8.329e-05,2]
[405830928,1771347040076,-200.0,8.329e-05,2]
[405830930,1771347040086,-500.0,8.329e-05,2]
[405830931,1771347040095,-500.0,8.329e-05,2]
[405830933,1771347040105,-500.0,8.329e-05,2]
[405830935,1771347040114,-616.5683879,8.329e-05,2]
[405830937,1771347040123,-500.0,8.329e-05,2]
[405830939,1771347040133,-596.0,8.329e-05,2]
[405830940,1771347040142,-201.09695119,8.329e-05,2]
[405830942,1771347040151,-500.0,8.329e-05,2]
[405830973,1771347040489,-500.0,8.329e-05,2]
[405830975,1771347040499,-220.15883999,8.329e-05,2]
[405830977,1771347040508,-150.0,8.329e-05,2]
[405830979,1771347040517,-500.0,8.329e-05,2]
[405830981,1771347040527,-500.0,8.329e-05,2]
[405830983,1771347040537,-500.0,8.329e-05,2]
[405830985,1771347040547,-500.0,8.329e-05,2]
[405830986,1771347040556,-500.0,8.329e-05,2]
[405830988,1771347040565,-537.18600864,8.329e-05,2]
[405830990,1771347040575,-500.0,8.329e-05,2]
[405830992,1771347040584,-466.0,8.329e-05,2]
[405830994,1771347040593,-500.0,8.329e-05,2]
[405830996,1771347040602,-500.0,8.329e-05,2]
[405830998,1771347040611,-500.0,8.383e-05,2]
[405830999,1771347040620,-500.0,8.383e-05,2]
[405831001,1771347040630,-187.36614029,8.383e-05,2]
[405831003,1771347040642,-500.0,8.383e-05,2]
[405831005,1771347040650,-500.0,8.383e-05,2]
[405831007,1771347040659,-500.0,8.383e-05,2]
[405831009,1771347040668,-500.0,8.383e-05,2]
[405831011,1771347040677,-596.0,8.383e-05,2]
[405831013,1771347040686,-500.0,8.383e-05,2]
[405831014,1771347040696,-500.0,8.383e-05,2]
[405831016,1771347040705,-150.0,8.383e-05,2]
[405831018,1771347040715,-500.0,8.383e-05,2]
[405831020,1771347040724,-500.0,8.383e-05,2]
[405831022,1771347040734,-500.0,8.383e-05,2]
[405831024,1771347040746,-510.76125773,8.383e-05,2]
[405831026,1771347040755,-500.0,8.383e-05,2]
[405831028,1771347040764,-500.0,8.383e-05,2]
[405831030,1771347040773,-466.0,8.383e-05,2]
[405831032,1771347040784,-500.0,8.383e-05,2]
[405831034,1771347040793,-500.0,8.383e-05,2]
[405831035,1771347040802,-329.95129651,8.438e-05,2]
[405831037,1771347040811,-500.0,8.438e-05,2]
[405831039,1771347040821,-500.0,8.438e-05,2]
[405831041,1771347040830,-500.0,8.438e-05,2]
[405831043,1771347040839,-500.0,8.438e-05,2]
[405831045,1771347040850,-500.0,8.438e-05,2]
[405831047,1771347040860,-596.0,8.438e-05,2]
[405831049,1771347040870,-500.0,8.438e-05,2]
[405831051,1771347040879,-500.0,8.438e-05,2]
[405831053,1771347040888,-150.0,8.438e-05,2]
[405831055,1771347040896,-500.0,8.438e-05,2]
[405831056,1771347040906,-500.0,8.438e-05,2]
[405831058,1771347040915,-500.0,8.438e-05,2]
[405831060,1771347040923,-500.0,8.438e-05,2]
[405831062,1771347040932,-500.0,8.438e-05,2]
[405831064,1771347040941,-466.0,8.438e-05,2]
[405831066,1771347040950,-500.0,8.438e-05,2]
[405831068,1771347040959,-500.0,8.438e-05,2]
[405831070,1771347040968,-166.66,8.463e-05,2]
[405831071,1771347040978,-500.0,8.493e-05,2]
[405831073,1771347040987,-500.0,8.493e-05,2]
[405831075,1771347040998,-500.0,8.493e-05,2]
[405831077,1771347041007,-500.0,8.493e-05,2]
[405831079,1771347041016,-500.0,8.493e-05,2]
[405831081,1771347041024,-596.0,8.493e-05,2]
[405831083,1771347041033,-500.33776257,8.493e-05,2]
[405831085,1771347041042,-500.0,8.493e-05,2]
[405831086,1771347041051,-250.0,8.493e-05,2]
[405831088,1771347041060,-500.0,8.493e-05,2]
[405831090,1771347041069,-500.0,8.493e-05,2]
[405831091,1771347041079,-500.0,8.493e-05,2]
[405831092,1771347041087,-500.0,8.493e-05,2]
[405831093,1771347041096,-466.0,8.493e-05,2]
[405831094,1771347041104,-500.0,8.493e-05,2]
[405831095,1771347041113,-500.0,8.493e-05,2]
[405831096,1771347041122,-500.0,8.493e-05,2]
[405831097,1771347041131,-500.0,8.493e-05,2]
[405831098,1771347041139,-500.0,8.548e-05,2]
[405831099,1771347041148,-464.38268717,8.548e-05,2]
[405831100,1771347041158,-500.0,8.548e-05,2]
[405831101,1771347041167,-500.0,8.548e-05,2]
[405831102,1771347041176,-500.0,8.548e-05,2]
[405831103,1771347041185,-596.0,8.548e-05,2]
[405831104,1771347041194,-382.17209928,8.548e-05,2]
[405831105,1771347041203,-475.49905426,8.548e-05,2]
[405831107,1771347041212,-500.0,8.548e-05,2]
[405831109,1771347041221,-500.0,8.548e-05,2]
[405831111,1771347041231,-621.12228144,8.548e-05,2]
[405831113,1771347041240,-466.0,8.548e-05,2]
[405831115,1771347041249,-500.0,8.548e-05,2]
[405831117,1771347041258,-500.0,8.548e-05,2]
[405831119,1771347041267,-500.0,8.548e-05,2]
[405831121,1771347041277,-500.0,8.603e-05,2]
[405831123,1771347041286,-500.0,8.603e-05,2]
[405831125,1771347041295,-500.0,8.603e-05,2]
[405831127,1771347041304,-500.0,8.603e-05,2]
[405831129,1771347041314,-596.0,8.603e-05,2]
[405831131,1771347041323,-500.0,8.603e-05,2]
[405831133,1771347041333,-500.0,8.603e-05,2]
[405831135,1771347041343,-466.0,8.603e-05,2]
[405831137,1771347041352,-500.0,8.603e-05,2]
[405831139,1771347041362,-500.0,8.603e-05,2]
[405831141,1771347041371,-500.0,8.603e-05,2]
[405831143,1771347041380,-1600.0,8.611e-05,2]
[405831145,1771347041390,-500.0,8.657e-05,2]
[405831147,1771347041399,-500.0,8.657e-05,2]
[405831149,1771347041409,-500.0,8.657e-05,2]
[405831151,1771347041420,-596.0,8.657e-05,2]
[405831153,1771347041429,-500.0,8.657e-05,2]
[405831155,1771347041438,-500.0,8.657e-05,2]
[405831157,1771347041447,-500.0,8.657e-05,2]
[405831159,1771347041457,-466.0,8.657e-05,2]
[405831161,1771347041469,-500.0,8.657e-05,2]
[405831163,1771347041478,-500.0,8.657e-05,2]
[405831165,1771347041486,-500.0,8.657e-05,2]
[405831167,1771347041496,-250.0,8.704e-05,2]
[405831169,1771347041506,-155.81655615,8.712e-05,2]
[405831171,1771347041515,-500.0,8.712e-05,2]
[405831173,1771347041523,-500.0,8.712e-05,2]
[405831175,1771347041533,-596.0,8.712e-05,2]
[405831177,1771347041542,-500.0,8.712e-05,2]
[405831179,1771347041552,-500.0,8.712e-05,2]
[405831181,1771347041562,-500.0,8.712e-05,2]
[405831183,1771347041572,-466.0,8.712e-05,2]
[405831185,1771347041581,-500.0,8.712e-05,2]
[405831187,1771347041590,-500.0,8.712e-05,2]
[405831189,1771347041599,-500.0,8.712e-05,2]
[405831191,1771347041607,-151.0,8.764e-05,2]
[405831193,1771347041616,-500.0,8.767e-05,2]
[405831195,1771347041626,-500.0,8.767e-05,2]
[405831197,1771347041635,-596.0,8.767e-05,2]
[405831199,1771347041644,-500.0,8.767e-05,2]
[405831201,1771347041654,-500.0,8.767e-05,2]
[405831203,1771347041663,-500.0,8.767e-05,2]
[405831205,1771347041672,-466.0,8.767e-05,2]
[405831207,1771347041681,-500.0,8.767e-05,2]
[405831209,1771347041692,-500.0,8.767e-05,2]
[405831211,1771347041701,-500.0,8.767e-05,2]
[405831213,1771347041710,-500.0,8.767e-05,2]
[405831215,1771347041720,-3292.0,8.769e-05,2]
[405831217,1771347041729,-736.0,8.77e-05,2]
[405831219,1771347041739,-823.0,8.77e-05,2]
[405831221,1771347041752,-500.0,8.822e-05,2]
[405831223,1771347041762,-361.9355564,8.822e-05,2]
[405831225,1771347041771,-596.0,8.822e-05,2]
[405831227,1771347041780,-500.0,8.822e-05,2]
[405831230,1771347041790,-500.0,8.822e-05,2]
[405831231,1771347041799,-500.0,8.822e-05,2]
[405831233,1771347041809,-466.0,8.822e-05,2]
[405831236,1771347041822,-500.0,8.822e-05,2]
[405831238,1771347041831,-500.0,8.822e-05,2]
[405831240,1771347041840,-500.0,8.822e-05,2]
[405831242,1771347041850,-500.0,8.877e-05,2]
[405831244,1771347041859,-596.0,8.877e-05,2]
[405831245,1771347041869,-500.0,8.877e-05,2]
[405831246,1771347041878,-500.0,8.877e-05,2]
[405831247,1771347041887,-224.65460803,8.877e-05,2]
[405831248,1771347041896,-466.0,8.877e-05,2]
[405831249,1771347041905,-500.0,8.877e-05,2]
[405831250,1771347041914,-500.0,8.877e-05,2]
[405831251,1771347041923,-500.0,8.877e-05,2]
[405831252,1771347041932,-500.0,8.931e-05,2]
[405831253,1771347041941,-596.0,8.931e-05,2]
[405831254,1771347041951,-498.26652801,8.931e-05,2]
[405831255,1771347041960,-500.0,8.931e-05,2]
[405831256,1771347041969,-466.0,8.931e-05,2]
[405831257,1771347041978,-500.0,8.931e-05,2]
[405831258,1771347041987,-292.49812506,8.931e-05,2]
[405831259,1771347041997,-500.0,8.931e-05,2]
[405831260,1771347042006,-611.76249723,8.986e-05,2]
[405831261,1771347042015,-596.0,8.986e-05,2]
[405831262,1771347042024,-594.68179644,8.986e-05,2]
[405831263,1771347042033,-466.0,8.986e-05,2]
[405831264,1771347042042,-500.0,8.986e-05,2]
[405831265,1771347042051,-500.0,8.986e-05,2]
[405831266,1771347042061,-596.0,9.041e-05,2]
[405831267,1771347042071,-466.0,9.041e-05,2]
[405831268,1771347042081,-500.0,9.041e-05,2]
[405831269,1771347042090,-500.0,9.041e-05,2]
[405831270,1771347042100,-500.0,9.041e-05,2]
[405831271,1771347042110,-596.0,9.096e-05,2]
[405831272,1771347042119,-466.0,9.096e-05,2]
[405831273,1771347042130,-266.33885806,9.096e-05,2]
[405831274,1771347042139,-500.0,9.096e-05,2]
[405831275,1771347042149,-596.0,9.151e-05,2]
[405831276,1771347042159,-466.0,9.151e-05,2]
[405831278,1771347042169,-500.0,9.151e-05,2]
[405831280,1771347042178,-596.0,9.205e-05,2]
[405831282,1771347042188,-466.0,9.205e-05,2]
[405831284,1771347042197,-481.0942881,9.205e-05,2]
[405831286,1771347042206,-1000.0,9.247e-05,2]
[405831288,1771347042215,-596.0,9.26e-05,2]
[405831290,1771347042225,-466.0,9.26e-05,2]
[405831292,1771347042234,-596.0,9.315e-05,2]
[405831293,1771347042244,-466.0,9.315e-05,2]
[405831295,1771347042253,-500.0,9.315e-05,2]
[405831298,1771347042263,-596.0,9.37e-05,2]
[405831299,1771347042272,-596.0,9.424e-05,2]
[405831302,1771347042282,-600.2655769,9.479e-05,2]
[405831304,1771347042291,-213.804517,9.495e-05,2]
[405831306,1771347042300,-1600.0,9.568e-05,2]
[405831308,1771347042310,-500.0,9.589e-05,2]
[405831310,1771347042319,-1252.0,9.646e-05,2]
[405831312,1771347042328,-4609.0,9.646e-05,2]
[405831314,1771347042338,-1152.0,9.647e-05,2]
[405831316,1771347042347,-1401.0,9.67e-05,2]
[405831318,1771347042356,-14381.39,9.67e-05,2]
[405831320,1771347042365,-19999.99,9.67e-05,2]
[405831322,1771347042374,-9999.99,9.67e-05,2]
[405831324,1771347042383,-173.355935,9.678e-05,2]
[405831326,1771347042392,-500.0,9.863e-05,2]
[405831328,1771347042402,-898.32890406,0.0001,2]
[405831330,1771347042411,-151.0,0.0001,2]
[405831332,1771347042420,-200.0,0.0001,2]
[405831334,1771347042429,-151.0,0.0001,2]
[405831336,1771347042438,-151.0,0.0001,2]
[405831338,1771347042448,-151.0,0.0001,2]
[405831340,1771347042456,-151.0,0.0001,2]
[405831342,1771347042465,-151.0,0.0001,2]
[405831344,1771347042474,-151.0,0.0001,2]
[405831346,1771347042483,-151.0,0.0001,2]
[405831348,1771347042491,-151.0,0.0001,2]
[405831350,1771347042500,-151.0,0.0001,2]
[405831352,1771347042509,-151.0,0.0001,2]
[405831354,1771347042518,-151.0,0.0001,2]
[405831356,1771347042527,-151.0,0.0001,2]
[405831358,1771347042536,-151.0,0.0001,2]
[405831360,1771347042545,-151.0,0.0001,2]
[405831362,1771347042554,-500.0,0.0001,2]
[405831364,1771347042563,-151.0,0.0001,2]
[405831366,1771347042573,-500.0,0.0001,2]
[405831368,1771347042582,-151.0,0.0001,2]
[405831370,1771347042591,-500.0,0.0001,2]
[405831372,1771347042600,-151.0,0.0001,2]
[405831374,1771347042609,-500.0,0.0001,2]
[405831376,1771347042618,-151.0,0.0001,2]
[405831378,1771347042628,-500.0,0.0001,2]
[405831380,1771347042637,-151.0,0.0001,2]
[405831382,1771347042646,-500.0,0.0001,2]
[405831384,1771347042655,-151.0,0.0001,2]
[405831386,1771347042663,-500.0,0.0001,2]
[405831388,1771347042672,-151.0,0.0001,2]
[405831390,1771347042681,-164.43370107,0.0001,2]
[405831393,1771347042690,-500.0,0.0001,2]
[405831395,1771347042699,-151.0,0.0001,2]
[405831396,1771347042709,-500.0,0.0001,2]
[405831397,1771347042718,-151.0,0.0001,2]
[405831398,1771347042727,-500.0,0.0001,2]
[405831399,1771347042737,-151.0,0.0001,2]
[405831400,1771347042748,-500.0,0.0001,2]
[405831401,1771347042756,-151.0,0.0001,2]
[405831402,1771347042765,-151.0,0.0001,2]
[405831403,1771347042774,-500.0,0.0001,2]
[405831404,1771347042785,-500.0,0.0001,2]
[405831405,1771347042794,-500.0,0.0001,2]
[405831406,1771347042803,-500.0,0.0001,2]
[405831407,1771347042815,-500.0,0.0001,2]
[405831408,1771347042824,-500.0,0.0001,2]
[405831409,1771347042833,-500.0,0.0001,2]
[405831410,1771347042842,-500.0,0.0001,2]
[405831411,1771347042851,-500.0,0.0001,2]
[405831412,1771347042861,-500.0,0.0001,2]
[405831413,1771347042870,-500.0,0.0001,2]
[405831414,1771347042880,-200.0,0.0001,2]
[405831415,1771347042889,-310.34089999,0.0001,2]
[405831417,1771347042899,-310.34089999,0.0001,2]
[405831418,1771347042908,-310.34089999,0.0001,2]
[405831419,1771347042917,-337.0,0.0001,2]
[405831420,1771347042926,-500.0,0.0001,2]
[405831421,1771347042938,-337.0,0.0001,2]
[405831422,1771347042950,-337.85061866,0.0001,2]
[405831423,1771347042960,-151.0,0.0001,2]
[405831424,1771347042970,-151.0,0.0001,2]
[405831426,1771347042979,-151.0,0.0001,2]
[405831427,1771347042990,-151.0,0.0001,2]
[405831429,1771347043001,-151.0,0.0001,2]
[405831430,1771347043010,-151.0,0.0001,2]
[405831433,1771347043020,-151.0,0.0001,2]
[405831435,1771347043029,-151.0,0.0001,2]
[405831437,1771347043039,-151.0,0.0001,2]
[405831439,1771347043048,-151.0,0.0001,2]
[405831440,1771347043058,-151.0,0.0001,2]
[405831441,1771347043067,-1233.6699943,0.0001,2]
[405831442,1771347043076,-1233.6699943,0.0001,2]
[405831443,1771347043085,-691.33598151,0.0001,2]
[405831444,1771347043094,-158.59766446,0.0001,2]
[405831445,1771347043103,-500.0,0.00010137,2]
[405831446,1771347043112,-1000.0,0.00010274,2]
[405831447,1771347043122,-153.0,0.00010293,3]
[405831448,1771347043131,-500.0,0.00010411,2]
[405831449,1771347043140,-1600.0,0.00010525,2]
[405831450,1771347043149,-200.0,0.00010548,2]
[405831451,1771347043159,-200.0,0.00010548,2]
[405831452,1771347043168,-500.0,0.00010548,2]
[405831453,1771347043178,-6453.0,0.0001061,2]
[405831454,1771347043188,-1613.0,0.00010612,2]
[405831455,1771347043198,-2129.0,0.00010615,2]
[405831456,1771347043207,-500.0,0.00010685,2]
[405831457,1771347043217,-500.0,0.00010959,2]
[405831458,1771347043226,-226.88409827,0.00010959,2]
[405831459,1771347043236,-500.0,0.00010959,2]
[405831460,1771347043246,-150.0,0.00010959,2]
[405831461,1771347043256,-200.0,0.00011096,2]
[405831462,1771347043266,-200.0,0.00011096,2]
[405831463,1771347043276,-500.0,0.00011096,2]
[405831464,1771347043286,-30407.65827441,0.00011099,2]
[405831465,1771347043296,-30407.65827441,0.00011099,2]
[405831466,1771347043306,-30407.65827441,0.00011099,2]
[405831467,1771347043317,-30407.65827441,0.00011099,2]
[405831468,1771347043328,-65246.22163362,0.00011099,2]
[405831469,1771347043339,-65246.2216336,0.00011099,2]
[405831470,1771347043350,-65246.2216336,0.00011099,2]
[405831471,1771347043360,-2687.645246,0.00011112,2]
[405831472,1771347043370,-1000.0,0.00011149,2]
[405831473,1771347043380,-500.0,0.00011233,2]
[405831474,1771347043391,-10583.65,0.00011233,2]
[405831475,1771347043401,-1000.0,0.00011301,2]
[405831476,1771347043411,-30407.65827441,0.00011318,2]
[405831477,1771347043422,-1600.0,0.00011482,2]
[405831478,1771347043432,-500.0,0.00011507,2]
[405831479,1771347043442,-4606.71,0.00011507,2]
[405831480,1771347043452,-200.0,0.00011644,2]
[405831481,1771347043462,-200.0,0.00011644,2]
[405831482,1771347043472,-500.0,0.00011644,2]
[405831483,1771347043483,-150.0,0.00011644,2]
[405831484,1771347043492,-9035.0,0.00011671,2]
[405831485,1771347043502,-1014.0,0.00011676,2]
[405831486,1771347043512,-500.0,0.00011781,2]
[405831487,1771347043522,-2651.828483,0.00011868,2]
[405831488,1771347043532,-256.56542,0.00011868,2]
[405831489,1771347043542,-214297.0,0.000119,2]
[405831490,1771347043552,-241.69,0.00011914,2]
[405831491,1771347043564,-583.69347785,0.00011918,2]
[405831492,1771347043574,-500.0,0.00012055,2]
[405831493,1771347043584,-500.0,0.00012173,2]
[405831494,1771347043594,-501.03554845,0.00012173,2]
[405831495,1771347043604,-502.09858606,0.00012173,2]
[405831496,1771347043615,-500.0,0.00012173,2]
[405831497,1771347043625,-500.0,0.00012173,2]
[405831498,1771347043635,-164.61380668,0.00012173,2]
[405831499,1771347043645,-501.51792058,0.00012173,2]
[405831500,1771347043655,-608.22588366,0.00012173,2]
[405831501,1771347043665,-500.0,0.00012173,2]
[405831502,1771347043675,-500.0,0.00012173,2]
[405831503,1771347043686,-500.0,0.00012173,2]
[405831505,1771347043696,-500.0,0.00012173,2]
[405831507,1771347043706,-218.33608313,0.00012173,2]
[405831509,1771347043716,-500.0,0.00012173,2]
[405831510,1771347043726,-500.0,0.00012173,2]
[405831512,1771347043736,-500.0,0.00012173,2]
[405831513,1771347043750,-160.37289206,0.00012173,2]
[405831514,1771347043759,-500.0,0.00012173,2]
[405831515,1771347043769,-163.58520611,0.00012173,2]
[405831516,1771347043779,-306.10762696,0.00012173,2]
[405831517,1771347043790,-500.0,0.00012173,2]
[405831518,1771347043800,-500.62727143,0.00012173,2]
[405831519,1771347043811,-500.0,0.00012173,2]
[405831520,1771347043822,-500.0,0.00012173,2]
[405831521,1771347043832,-500.0,0.00012173,2]
[405831522,1771347043842,-500.0,0.00012173,2]
[405831523,1771347043852,-166.78412047,0.00012173,2]
[405831524,1771347043862,-239.8459294,0.00012173,2]
[405831525,1771347043873,-500.0,0.00012173,2]
[405831526,1771347043883,-500.0,0.00012173,2]
[405831527,1771347043894,-500.46642231,0.00012173,2]
[405831528,1771347043905,-500.0,0.00012173,2]
[405831529,1771347043917,-500.0,0.00012173,2]
[405831530,1771347043928,-500.0,0.00012173,2]
[405831531,1771347043938,-500.0,0.00012173,2]
[405831532,1771347043948,-200.0,0.00012192,2]
[405831533,1771347043959,-200.0,0.00012192,2]
[405831535,1771347043968,-500.0,0.00012192,2]
[405831537,1771347043979,-6961.78336772,0.000122,2]
[405831539,1771347043988,-226.20610255,0.000122,2]
[405831541,1771347043998,-15274.77934265,0.000122,2]
[405831544,1771347044008,-5530.0,0.000123,3]
[405831545,1771347044020,-1000.0,0.00012329,2]
[405831548,1771347044030,-30407.65827441,0.00012522,2]
[405831550,1771347044040,-5530.0,0.000126,5]
[405831552,1771347044050,-35866.0,0.00012653,2]
[405831554,1771347044061,-173.57638878,0.00012667,2]
[405831556,1771347044071,-160.0,0.00012669,2]
[405831558,1771347044082,-500.0,0.00012721,2]
[405831560,1771347044092,-1000.0,0.00012721,2]
[405831562,1771347044101,-500.0,0.00012721,2]
[405831564,1771347044111,-500.0,0.00012721,2]
[405831566,1771347044123,-500.0,0.00012721,2]
[405831568,1771347044133,-1000.0,0.00012721,2]
[405831570,1771347044143,-500.0,0.00012721,2]
[405831572,1771347044153,-500.0,0.00012721,2]
[405831574,1771347044163,-500.0,0.00012721,2]
[405831576,1771347044172,-1000.0,0.00012721,2]
[405831578,1771347044182,-928.11420057,0.00012721,2]
[405831580,1771347044193,-615.3930462,0.00012721,2]
[405831582,1771347044202,-1000.0,0.00012721,2]
[405831584,1771347044212,-500.0,0.00012721,2]
[405831586,1771347044223,-500.0,0.00012721,2]
[405831587,1771347044234,-500.0,0.00012721,2]
[405831588,1771347044244,-1000.0,0.00012721,2]
[405831590,1771347044256,-500.0,0.00012721,2]
[405831592,1771347044268,-1000.0,0.00012721,2]
[405831593,1771347044278,-200.0,0.0001274,2]
[405831594,1771347044289,-200.0,0.0001274,2]
[405831595,1771347044299,-500.0,0.0001274,2]
[405831596,1771347044310,-9530.0,0.00012838,2]
[405831597,1771347044322,-404.497183,0.00012903,2]
[405831598,1771347044333,-150.0,0.00013028,2]
[405831599,1771347044343,-500.0,0.00013028,2]
[405831600,1771347044354,-150.0,0.00013028,2]
[405831601,1771347044364,-150.0,0.00013028,2]
[405831602,1771347044374,-500.0,0.00013028,2]
[405831603,1771347044384,-150.0,0.00013028,2]
[405831604,1771347044394,-150.0,0.00013028,2]
[405831605,1771347044404,-150.0,0.00013028,2]
[405831606,1771347044414,-500.0,0.00013028,2]
[405831607,1771347044424,-500.0,0.00013028,2]
[405831608,1771347044435,-150.0,0.00013028,2]
[405831609,1771347044447,-150.0,0.00013083,2]
[405831610,1771347044458,-500.0,0.00013083,2]
[405831611,1771347044693,-244.28993987,0.00013083,2]
[405831612,1771347044704,-150.37957529,0.00013083,2]
[405831613,1771347044715,-500.0,0.00013083,2]
[405831614,1771347044725,-150.0,0.00013083,2]
[405831615,1771347044736,-150.0,0.00013083,2]